fUSD/lending_fUSD_20240904
["ID","MTS","AMOUNT","RATE_DAILY","PERIOD"]
[337067775,1725409859365,-500.0,0.00014999,2]
[337067776,1725409859374,-272.23,0.00014999,2]
[337067777,1725409859383,-500.0,0.00014999,2]
[337067778,1725409859392,-426.36,0.00014999,2]
[337067779,1725409859401,-500.0,0.00014999,2]
[337067780,1725409859410,-500.0,0.00014999,2]
[337067781,1725409859419,-500.0,0.00014999,2]
[337067782,1725409859428,-500.0,0.00014999,2]
[337067783,1725409859437,-283.08,0.00014999,2]
[337067784,1725409859446,-501.93770147,0.00014999,2]
[337067785,1725409859455,-500.0,0.00014999,2]
[337067786,1725409859464,-500.0,0.00014999,2]
[337067787,1725409859474,-501.29170676,0.00014999,2]
[337067788,1725409859483,-503.1753283,0.00014999,2]
[337067789,1725409859492,-500.0,0.00014999,2]
[337067790,1725409859501,-501.07256708,0.00014999,2]
[337067791,1725409859510,-500.0,0.00014999,2]
[337067792,1725409859519,-500.0,0.00014999,2]
[337067793,1725409859529,-500.0,0.00014999,2]
[337067794,1725409859538,-500.0,0.00014999,2]
[337067795,1725409859548,-500.0,0.00014999,2]
[337067796,1725409859557,-207.12,0.00014999,2]
[337067797,1725409859567,-500.0,0.00014999,2]
[337067798,1725409859576,-503.60824729,0.00014999,2]
[337067799,1725409859585,-510.78091883,0.00014999,2]
[337067800,1725409859594,-500.0,0.00014999,2]
[337067801,1725409859602,-500.0,0.00014999,2]
[337067802,1725409859612,-324.9,0.00014999,2]
[337067803,1725409859620,-500.0,0.00014999,2]
[337067804,1725409859629,-502.06359027,0.00014999,2]
[337067805,1725409859638,-500.0,0.00014999,2]
[337067806,1725409859652,-500.0,0.00014999,2]
[337067807,1725409859660,-289.65289979,0.00014999,2]
[337067808,1725409859670,-504.08579606,0.00014999,2]
[337067809,1725409859679,-500.0,0.00014999,2]
[337067810,1725409859691,-500.0,0.00014999,2]
[337067811,1725409859700,-333.48,0.00014999,2]
[337067812,1725409859709,-500.0,0.00014999,2]
[337067813,1725409859718,-500.0,0.00014999,2]
[337067814,1725409859728,-500.0,0.00014999,2]
[337067815,1725409859738,-500.0,0.00014999,2]
[337067816,1725409859746,-500.0,0.00014999,2]
[337067817,1725409859756,-500.0,0.00014999,2]
[337067818,1725409859765,-500.0,0.00014999,2]
[337067819,1725409859775,-605.65607542,0.00014999,2]
[337067820,1725409859784,-500.0,0.00014999,2]
[337067821,1725409859792,-500.0,0.00014999,2]
[337067822,1725409859801,-456.14,0.00014999,2]
[337067823,1725409859810,-500.0,0.00014999,2]
[337067824,1725409859819,-500.0,0.00014999,2]
[337067825,1725409859828,-500.0,0.00014999,2]
[337067826,1725409859837,-500.0,0.00014999,2]
[337067827,1725409859847,-500.0,0.00014999,2]
[337067828,1725409859856,-501.74653063,0.00014999,2]
[337067829,1725409859866,-500.0,0.00014999,2]
[337067830,1725409859876,-500.0,0.00014999,2]
[337067831,1725409859885,-504.39256944,0.00014999,2]
[337067832,1725409859895,-500.0,0.00014999,2]
[337067833,1725409859904,-560.73552223,0.00014999,2]
[337067834,1725409859914,-501.75201162,0.00014999,2]
[337067835,1725409859923,-500.0,0.00014999,2]
[337067836,1725409859932,-500.0,0.00014999,2]
[337067837,1725409859942,-594.05,0.00014999,2]
[337067838,1725409859951,-500.0,0.00014999,2]
[337067839,1725409859960,-315.74,0.00014999,2]
[337067840,1725409859969,-500.0,0.00014999,2]
[337067841,1725409859978,-408.74,0.00014999,2]
[337067842,1725409859987,-500.0,0.00014999,2]
[337067843,1725409859996,-500.0,0.00014999,2]
[337067844,1725409860004,-500.0,0.00014999,2]
[337067845,1725409860014,-500.0,0.00014999,2]
[337067846,1725409860023,-504.51994968,0.00014999,2]
[337067847,1725409860032,-500.0,0.00014999,2]
[337067848,1725409860042,-500.0,0.00014999,2]
[337067849,1725409860051,-501.46360719,0.00014999,2]
[337067850,1725409860061,-500.0,0.00014999,2]
[337067851,1725409860070,-500.0,0.00014999,2]
[337067852,1725409860079,-182.16233811,0.00014999,2]
[337067853,1725409860088,-500.0,0.00014999,2]
[337067854,1725409860097,-500.0,0.00014999,2]
[337067855,1725409860106,-500.0,0.00014999,2]
[337067856,1725409860115,-500.0,0.00014999,2]
[337067857,1725409860124,-500.0,0.00014999,2]
[337067858,1725409860133,-500.0,0.00014999,2]
[337067859,1725409860142,-500.0,0.00014999,2]
[337067860,1725409860151,-500.0,0.00014999,2]
[337067861,1725409860161,-500.0,0.00014999,2]
[337067862,1725409860170,-261.57,0.00014999,2]
[337067863,1725409860179,-500.0,0.00014999,2]
[337067864,1725409860188,-597.68,0.00014999,2]
[337067865,1725409860197,-500.0,0.00014999,2]
[337067866,1725409860207,-503.43166593,0.00014999,2]
[337067867,1725409860217,-634.46,0.00014999,2]
[337067868,1725409860226,-208.68,0.00014999,2]
[337067869,1725409860235,-398.86497826,0.00014999,2]
[337067870,1725409860244,-500.0,0.00014999,2]
[337067871,1725409860253,-504.96501812,0.00014999,2]
[337067872,1725409860263,-500.0,0.00014999,2]
[337067873,1725409860272,-497.54619427,0.00014999,2]
[337067874,1725409860281,-500.0,0.00014999,2]
[337067875,1725409860290,-500.0,0.00014999,2]
[337067876,1725409860300,-500.0,0.00014999,2]
[337067877,1725409860310,-500.0,0.00014999,2]
[337067878,1725409860318,-500.0,0.00014999,2]
[337067879,1725409860328,-281.51584225,0.00014999,2]
[337067880,1725409860337,-500.0,0.00014999,2]
[337067881,1725409860346,-500.0,0.00014999,2]
[337067882,1725409860355,-500.0,0.00014999,2]
[337067883,1725409860365,-213.11542222,0.00014999,2]
[337067884,1725409860373,-504.97612362,0.00014999,2]
[337067885,1725409860382,-500.0,0.00014999,2]
[337067886,1725409860393,-500.0,0.00014999,2]
[337067887,1725409860402,-501.16465795,0.00014999,2]
[337067888,1725409860412,-500.0,0.00014999,2]
[337067889,1725409860421,-500.0,0.00014999,2]
[337067890,1725409860431,-490.58,0.00014999,2]
[337067891,1725409860440,-500.0,0.00014999,2]
[337067892,1725409860449,-285.4280605,0.00014999,2]
[337067893,1725409860458,-151.0,0.00014999,2]
[337067894,1725409860467,-151.0,0.00014999,2]
[337067895,1725409860477,-500.0,0.00014999,2]
[337067896,1725409860486,-500.0,0.00014999,2]
[337067897,1725409860495,-500.0,0.00014999,2]
[337067898,1725409860504,-377.06,0.00014999,2]
[337067899,1725409860513,-432.29635298,0.00014999,2]
[337067900,1725409860522,-500.0,0.00014999,2]
[337067901,1725409860531,-503.29476802,0.00014999,2]
[337067902,1725409860540,-151.0,0.00014999,2]
[337067903,1725409860549,-151.0,0.00014999,2]
[337067904,1725409860558,-500.0,0.00014999,2]
[337067905,1725409860567,-452.59,0.00014999,2]
[337067906,1725409860577,-503.32170107,0.00014999,2]
[337067907,1725409860586,-500.0,0.00014999,2]
[337067908,1725409860595,-500.0,0.00014999,2]
[337067909,1725409860604,-500.0,0.00014999,2]
[337067910,1725409860613,-500.0,0.00014999,2]
[337067911,1725409860622,-500.0,0.00014999,2]
[337067912,1725409860631,-500.0,0.00014999,2]
[337067913,1725409860639,-500.0,0.00014999,2]
[337067914,1725409860650,-500.0,0.00014999,2]
[337067915,1725409860659,-500.0,0.00014999,2]
[337067916,1725409860668,-500.0,0.00014999,2]
[337067917,1725409860677,-500.0,0.00014999,2]
[337067918,1725409860688,-506.12,0.00014999,2]
[337067919,1725409860697,-500.0,0.00014999,2]
[337067920,1725409860706,-500.0,0.00014999,2]
[337067921,1725409860715,-500.0,0.00014999,2]
[337067922,1725409860724,-617.53,0.00014999,2]
[337067923,1725409860734,-244.69,0.00014999,2]
[337067924,1725409860742,-500.0,0.00014999,2]
[337067925,1725409860751,-500.0,0.00014999,2]
[337067926,1725409860761,-500.0,0.00014999,2]
[337067927,1725409860770,-500.0,0.00014999,2]
[337067928,1725409860780,-500.0,0.00014999,2]
[337067929,1725409860789,-500.0,0.00014999,2]
[337067930,1725409860798,-249.58,0.00014999,2]
[337067931,1725409860807,-1157.0,0.00014999,2]
[337067932,1725409860817,-115049.92575768,0.00015,2]
[337067933,1725409860975,-281.00881241,0.00015,2]
[337067934,1725409860986,-273135.54418326,0.00015,2]
[337067935,1725410227131,353.59,0.00011903,2]
[337067936,1725410583394,10000.0,0.00013,2]
[337067937,1725410734321,335.91,0.00011707,2]
[337067961,1725411032209,-169.89742313,0.00013049,2]
[337067963,1725411032220,-222.0,0.00013149,2]
[337067965,1725411032229,-273.19,0.00013625,2]
[337067968,1725411032243,-200.0,0.00013634,2]
[337067971,1725411032253,-250.0,0.00013644,2]
[337067973,1725411032262,-250.0,0.0001366,2]
[337067974,1725411032272,-150.0,0.00013671,2]
[337067975,1725411032281,-160.09,0.00013673,2]
[337067977,1725411032291,-172.0,0.00013674,2]
[337067978,1725411032300,-538.97,0.00013674,2]
[337067979,1725411032309,-250.0,0.00013674,2]
[337067980,1725411032318,-1000.0,0.0001369,2]
[337067981,1725411032327,-499.99,0.0001369,2]
[337067982,1725411032335,-300.0,0.00013698,2]
[337067983,1725411032344,-200.0,0.00013699,2]
[337067984,1725411032353,-150.0,0.00013739,2]
[337067985,1725411032362,-262.4,0.00013883,2]
[337067986,1725411032372,-335.91,0.00013971,2]
[337067987,1725411032381,-850.47,0.00013992,2]
[337067988,1725411032390,-184.50254,0.00014263,2]
[337067989,1725411032399,-346.46,0.000143,2]
[337067990,1725411032409,-255.0,0.00014315,2]
[337067991,1725411032419,-810.0,0.00014522,2]
[337067992,1725411032428,-930.0,0.00014522,2]
[337067993,1725411032437,-1921.0,0.00014522,2]
[337067994,1725411032447,-183.23410944,0.00014679,2]
[337067995,1725411032456,-150.0,0.0001473,2]
[337067996,1725411032465,-150.0,0.00014734,2]
[337067997,1725411032475,-150.0,0.00014739,2]
[337067998,1725411032485,-740.35643987,0.00014739,2]
[337067999,1725411032495,-150.0,0.00014743,2]
[337068000,1725411032504,-150.0,0.00014743,2]
[337068001,1725411032514,-150.0,0.00014744,2]
[337068002,1725411032523,-150.0,0.00014747,2]
[337068003,1725411032533,-150.0,0.00014759,2]
[337068004,1725411032542,-150.0,0.00014763,2]
[337068005,1725411032551,-150.0,0.00014766,2]
[337068007,1725411032560,-23225.58709869,0.00014769,2]
[337068010,1725411032569,-150.0,0.00014774,2]
[337068012,1725411032579,-1000.0,0.00014777,2]
[337068014,1725411032588,-14881.65115831,0.00014778,2]
[337068016,1725411032597,-5829.18448917,0.00014779,2]
[337068018,1725411032609,-440.46604856,0.00014779,2]
[337068021,1725411032624,-3834.18185265,0.00014779,2]
[337068024,1725411032645,-262.71588572,0.00014779,2]
[337068027,1725411032661,-546.82915631,0.00014779,2]
[337068029,1725411032673,-10130.5353258,0.00014779,2]
[337068031,1725411032685,-340.28165674,0.00014779,2]
[337068035,1725411032712,-2106.27,0.00013699,2]
[337068037,1725411032721,-776.94346343,0.00014779,2]
[337068039,1725411032732,-655.60712406,0.00014779,2]
[337068059,1725411038430,-30714.07119756,0.00014779,2]
[337068060,1725411038440,-150.0,0.00014779,2]
[337068061,1725411038449,-334.54604155,0.00014779,2]
[337068062,1725411038458,-7722.0938,0.0001478,2]
[337068063,1725411038467,-150.0,0.00014784,2]
[337068064,1725411038476,-150.0,0.00014787,2]
[337068065,1725411038485,-150.0,0.00014797,2]
[337068066,1725411038495,-16190.46267022,0.00014798,2]
[337068067,1725411038504,-150.0,0.00014799,2]
[337068068,1725411038513,-150.0,0.00014799,2]
[337068069,1725411038522,-150.0,0.00014819,2]
[337068070,1725411038531,-150.0,0.00014823,2]
[337068071,1725411038540,-150.0,0.00014828,2]
[337068072,1725411038550,-150.0,0.00014828,2]
[337068073,1725411038558,-150.0,0.0001483,2]
[337068074,1725411038568,-150.0,0.0001483,2]
[337068075,1725411038576,-150.0,0.00014832,2]
[337068076,1725411038586,-150.0,0.00014838,2]
[337068077,1725411038595,-150.0,0.0001484,2]
[337068078,1725411038605,-11759.07580409,0.0001485,2]
[337068079,1725411038614,-6135.35461983,0.0001485,2]
[337068080,1725411038623,-2615.30939,0.0001485,2]
[337068081,1725411038632,-150.0,0.00014851,2]
[337068082,1725411038641,-150.0,0.00014853,2]
[337068083,1725411038650,-150.0,0.00014856,2]
[337068084,1725411038660,-150.0,0.00014856,2]
[337068085,1725411038670,-2095.43210473,0.0001486,2]
[337068086,1725411038679,-1014.56801228,0.00014869,3]
[337068087,1725411038689,-253.64200307,0.00014869,3]
[337068088,1725411038699,-507.28400614,0.0001487,3]
[337068089,1725411038709,-500.0,0.00014873,2]
[337068090,1725411038718,-2095.43210473,0.00014873,2]
[337068091,1725411038727,-641.77728648,0.00014878,2]
[337068093,1725411038737,-508.83100595,0.00014878,2]
[337068094,1725411038747,-500.0,0.00014878,2]
[337068095,1725411038756,-500.0,0.00014878,2]
[337068096,1725411038766,-164.025,0.00014878,2]
[337068097,1725411038775,-500.0,0.00014878,2]
[337068098,1725411038784,-500.0,0.00014878,2]
[337068099,1725411038793,-500.0,0.00014878,2]
[337068100,1725411038802,-151.38471156,0.00014878,2]
[337068101,1725411038811,-500.0,0.00014878,2]
[337068102,1725411038821,-500.0,0.00014878,2]
[337068103,1725411038830,-154.23934099,0.00014878,2]
[337068104,1725411038839,-500.0,0.00014878,2]
[337068105,1725411038848,-500.0,0.00014878,2]
[337068106,1725411038857,-500.0,0.00014878,2]
[337068107,1725411038867,-500.0,0.00014878,2]
[337068108,1725411038876,-500.0,0.00014878,2]
[337068109,1725411038885,-500.0,0.00014878,2]
[337068110,1725411038894,-500.0,0.00014878,2]
[337068111,1725411038903,-500.0,0.00014878,2]
[337068112,1725411038912,-500.0,0.00014878,2]
[337068113,1725411038922,-500.0,0.00014878,2]
[337068114,1725411038931,-500.0,0.00014878,2]
[337068115,1725411038939,-500.0,0.00014878,2]
[337068116,1725411038949,-154.53756471,0.00014878,2]
[337068117,1725411038958,-500.0,0.00014878,2]
[337068118,1725411038967,-500.0,0.00014878,2]
[337068119,1725411038976,-500.0,0.00014878,2]
[337068120,1725411038985,-500.0,0.00014878,2]
[337068121,1725411038995,-500.0,0.00014878,2]
[337068122,1725411039004,-500.0,0.00014878,2]
[337068123,1725411039013,-500.0,0.00014878,2]
[337068124,1725411039023,-500.0,0.00014878,2]
[337068125,1725411039032,-500.0,0.00014878,2]
[337068126,1725411039041,-500.0,0.00014878,2]
[337068127,1725411039050,-500.0,0.00014878,2]
[337068128,1725411039060,-500.0,0.00014878,2]
[337068129,1725411039069,-500.0,0.00014878,2]
[337068130,1725411039078,-500.0,0.00014878,2]
[337068131,1725411039087,-500.0,0.00014878,2]
[337068132,1725411039097,-500.0,0.00014878,2]
[337068133,1725411039106,-500.0,0.00014878,2]
[337068134,1725411039116,-500.0,0.00014878,2]
[337068135,1725411039126,-500.0,0.00014878,2]
[337068136,1725411039136,-500.0,0.00014878,2]
[337068137,1725411039148,-500.0,0.00014878,2]
[337068138,1725411039158,-500.0,0.00014878,2]
[337068139,1725411039167,-500.0,0.00014878,2]
[337068140,1725411039177,-500.0,0.00014878,2]
[337068141,1725411039186,-500.0,0.00014878,2]
[337068142,1725411039195,-223.18944628,0.00014878,2]
[337068143,1725411039205,-500.0,0.00014878,2]
[337068144,1725411039214,-395.02353945,0.00014878,2]
[337068145,1725411039225,-500.0,0.00014878,2]
[337068146,1725411039235,-500.0,0.00014878,2]
[337068147,1725411039244,-500.0,0.00014878,2]
[337068148,1725411039253,-500.0,0.00014878,2]
[337068149,1725411039262,-500.0,0.00014878,2]
[337068150,1725411039271,-500.0,0.00014878,2]
[337068151,1725411039280,-500.0,0.00014878,2]
[337068152,1725411039289,-500.0,0.00014878,2]
[337068153,1725411039298,-500.0,0.00014878,2]
[337068154,1725411039307,-500.0,0.00014878,2]
[337068155,1725411039316,-500.0,0.00014878,2]
[337068156,1725411039325,-500.0,0.00014878,2]
[337068157,1725411039336,-500.0,0.00014878,2]
[337068158,1725411039346,-500.0,0.00014878,2]
[337068159,1725411039355,-500.0,0.00014878,2]
[337068160,1725411039365,-500.0,0.00014878,2]
[337068161,1725411039374,-500.0,0.00014878,2]
[337068162,1725411039383,-590.86811532,0.00014878,2]
[337068163,1725411039392,-500.0,0.00014878,2]
[337068164,1725411039401,-500.0,0.00014878,2]
[337068165,1725411039410,-500.0,0.00014878,2]
[337068166,1725411039419,-500.0,0.00014878,2]
[337068167,1725411039428,-500.0,0.00014878,2]
[337068168,1725411039437,-500.0,0.00014878,2]
[337068169,1725411039446,-500.0,0.00014878,2]
[337068170,1725411039455,-500.0,0.00014878,2]
[337068171,1725411039464,-500.0,0.00014878,2]
[337068172,1725411039473,-229.14201299,0.00014878,2]
[337068173,1725411039482,-500.0,0.00014878,2]
[337068174,1725411039491,-506.70270455,0.00014878,2]
[337068175,1725411039502,-500.0,0.00014878,2]
[337068176,1725411039511,-500.0,0.00014878,2]
[337068177,1725411039520,-500.0,0.00014878,2]
[337068178,1725411039528,-500.0,0.00014878,2]
[337068179,1725411039537,-500.0,0.00014878,2]
[337068180,1725411039546,-500.0,0.00014878,2]
[337068181,1725411039555,-500.0,0.00014878,2]
[337068182,1725411039564,-500.0,0.00014878,2]
[337068183,1725411039573,-500.0,0.00014878,2]
[337068184,1725411039583,-500.0,0.00014878,2]
[337068185,1725411039593,-500.0,0.00014878,2]
[337068186,1725411039602,-500.0,0.00014878,2]
[337068187,1725411039611,-500.0,0.00014878,2]
[337068188,1725411039620,-500.0,0.00014878,2]
[337068189,1725411039630,-500.0,0.00014878,2]
[337068190,1725411039639,-500.0,0.00014878,2]
[337068191,1725411039649,-500.0,0.00014878,2]
[337068192,1725411039658,-500.0,0.00014878,2]
[337068193,1725411039667,-500.0,0.00014878,2]
[337068194,1725411039676,-500.0,0.00014878,2]
[337068195,1725411039684,-500.0,0.00014878,2]
[337068196,1725411039694,-500.0,0.00014878,2]
[337068197,1725411039703,-500.0,0.00014878,2]
[337068198,1725411039712,-500.0,0.00014878,2]
[337068199,1725411039721,-500.0,0.00014878,2]
[337068200,1725411039730,-500.0,0.00014878,2]
[337068201,1725411039740,-500.0,0.00014878,2]
[337068202,1725411039752,-500.0,0.00014878,2]
[337068203,1725411039761,-500.0,0.00014878,2]
[337068204,1725411039771,-500.0,0.00014878,2]
[337068205,1725411039779,-500.0,0.00014878,2]
[337068206,1725411039788,-500.0,0.00014878,2]
[337068207,1725411039798,-500.0,0.00014878,2]
[337068208,1725411039807,-500.0,0.00014878,2]
[337068209,1725411039816,-500.0,0.00014878,2]
[337068210,1725411039826,-500.0,0.00014878,2]
[337068211,1725411039835,-500.0,0.00014878,2]
[337068212,1725411039844,-500.0,0.00014878,2]
[337068213,1725411039853,-500.0,0.00014878,2]
[337068214,1725411039863,-500.0,0.00014878,2]
[337068215,1725411039872,-500.0,0.00014878,2]
[337068216,1725411039882,-500.0,0.00014878,2]
[337068217,1725411039891,-500.0,0.00014878,2]
[337068218,1725411039901,-500.0,0.00014878,2]
[337068219,1725411039910,-500.0,0.00014878,2]
[337068220,1725411039920,-500.0,0.00014878,2]
[337068221,1725411039928,-500.0,0.00014878,2]
[337068222,1725411039937,-500.0,0.00014878,2]
[337068223,1725411039946,-500.0,0.00014878,2]
[337068224,1725411039955,-500.0,0.00014878,2]
[337068225,1725411039964,-500.0,0.00014878,2]
[337068226,1725411039972,-500.0,0.00014878,2]
[337068227,1725411039981,-500.0,0.00014878,2]
[337068228,1725411039991,-500.0,0.00014878,2]
[337068229,1725411040002,-500.0,0.00014878,2]
[337068230,1725411040011,-500.0,0.00014878,2]
[337068231,1725411040019,-500.0,0.00014878,2]
[337068232,1725411040028,-500.0,0.00014878,2]
[337068233,1725411040216,-500.0,0.00014878,2]
[337068234,1725411040225,-500.0,0.00014878,2]
[337068235,1725411040234,-500.0,0.00014878,2]
[337068236,1725411040243,-367.18265682,0.00014878,2]
[337068237,1725411040254,-500.0,0.00014878,2]
[337068238,1725411040263,-500.0,0.00014878,2]
[337068239,1725411040272,-500.0,0.00014878,2]
[337068240,1725411040282,-500.0,0.00014878,2]
[337068241,1725411040291,-500.0,0.00014878,2]
[337068242,1725411040300,-500.0,0.00014878,2]
[337068243,1725411040309,-500.0,0.00014878,2]
[337068244,1725411040318,-500.0,0.00014878,2]
[337068245,1725411040327,-500.0,0.00014878,2]
[337068246,1725411040336,-500.0,0.00014878,2]
[337068247,1725411040345,-500.0,0.00014878,2]
[337068248,1725411040354,-500.0,0.00014878,2]
[337068249,1725411040363,-500.0,0.00014878,2]
[337068250,1725411040372,-500.0,0.00014878,2]
[337068251,1725411040382,-500.0,0.00014878,2]
[337068252,1725411040391,-500.0,0.00014878,2]
[337068253,1725411040400,-500.0,0.00014878,2]
[337068254,1725411040409,-500.0,0.00014878,2]
[337068255,1725411040419,-500.0,0.00014878,2]
[337068256,1725411040428,-500.0,0.00014878,2]
[337068257,1725411040438,-500.0,0.00014878,2]
[337068258,1725411040448,-500.0,0.00014878,2]
[337068259,1725411040458,-500.0,0.00014878,2]
[337068260,1725411040467,-500.0,0.00014878,2]
[337068261,1725411040477,-500.0,0.00014878,2]
[337068262,1725411040485,-500.0,0.00014878,2]
[337068263,1725411040494,-500.0,0.00014878,2]
[337068264,1725411040504,-500.0,0.00014878,2]
[337068265,1725411040513,-513.61144347,0.00014878,2]
[337068266,1725411040523,-500.0,0.00014878,2]
[337068267,1725411040532,-500.0,0.00014878,2]
[337068268,1725411040541,-500.0,0.00014878,2]
[337068269,1725411040551,-500.0,0.00014878,2]
[337068270,1725411040559,-500.0,0.00014878,2]
[337068271,1725411040568,-500.0,0.00014878,2]
[337068272,1725411040578,-500.0,0.00014878,2]
[337068273,1725411040587,-500.0,0.00014878,2]
[337068274,1725411040596,-500.0,0.00014878,2]
[337068275,1725411040606,-500.0,0.00014878,2]
[337068276,1725411040615,-500.0,0.00014878,2]
[337068277,1725411040625,-500.0,0.00014878,2]
[337068278,1725411040634,-500.0,0.00014878,2]
[337068279,1725411040643,-500.0,0.00014878,2]
[337068280,1725411040652,-500.0,0.00014878,2]
[337068281,1725411040661,-500.0,0.00014878,2]
[337068282,1725411040670,-500.0,0.00014878,2]
[337068283,1725411040680,-500.0,0.00014878,2]
[337068284,1725411040689,-500.0,0.00014878,2]
[337068286,1725411040699,-500.0,0.00014878,2]
[337068288,1725411040709,-500.0,0.00014878,2]
[337068290,1725411040718,-500.0,0.00014879,2]
[337068291,1725411040728,-500.0,0.00014879,2]
[337068292,1725411040738,-500.0,0.00014879,2]
[337068293,1725411040747,-500.0,0.00014879,2]
[337068294,1725411040761,-500.0,0.00014879,2]
[337068295,1725411040776,-500.0,0.00014879,2]
[337068296,1725411040787,-500.0,0.00014879,2]
[337068297,1725411040797,-500.0,0.00014879,2]
[337068298,1725411040807,-500.0,0.00014879,2]
[337068299,1725411040817,-500.0,0.00014879,2]
[337068300,1725411040827,-500.0,0.00014879,2]
[337068301,1725411040836,-500.0,0.00014879,2]
[337068302,1725411040846,-500.0,0.00014879,2]
[337068303,1725411040855,-501.33086968,0.00014879,2]
[337068304,1725411040864,-500.0,0.00014879,2]
[337068305,1725411040874,-500.0,0.00014879,2]
[337068306,1725411040884,-500.92736032,0.00014879,2]
[337068307,1725411040894,-504.53425934,0.00014879,2]
[337068308,1725411040905,-500.0,0.00014879,2]
[337068309,1725411040916,-500.0,0.00014879,2]
[337068310,1725411040927,-501.79386354,0.00014879,2]
[337068311,1725411040938,-501.60300449,0.00014879,2]
[337068312,1725411040948,-500.0,0.00014879,2]
[337068313,1725411040957,-500.0,0.00014879,2]
[337068314,1725411040967,-500.0,0.00014879,2]
[337068315,1725411040977,-502.75525187,0.00014879,2]
[337068316,1725411040987,-593.63,0.00014879,2]
[337068317,1725411040997,-207.44941361,0.00014879,2]
[337068318,1725411041016,-500.0,0.00014879,2]
[337068319,1725411041026,-501.22661942,0.00014879,2]
[337068320,1725411041037,-502.1017672,0.00014879,2]
[337068321,1725411041046,-500.0,0.00014879,2]
[337068322,1725411041055,-500.0,0.00014879,2]
[337068323,1725411041065,-606.37781847,0.00014879,2]
[337068324,1725411041074,-500.0,0.00014879,2]
[337068325,1725411041083,-500.0,0.00014879,2]
[337068326,1725411041092,-501.77921761,0.00014879,2]
[337068327,1725411041102,-500.0,0.00014879,2]
[337068328,1725411041112,-603.18,0.00014879,2]
[337068329,1725411041121,-500.0,0.00014879,2]
[337068330,1725411041131,-500.0,0.00014879,2]
[337068331,1725411041142,-500.0,0.00014879,2]
[337068332,1725411041152,-579.21,0.00014879,2]
[337068333,1725411041162,-500.0,0.00014879,2]
[337068334,1725411041171,-500.0,0.00014879,2]
[337068335,1725411041179,-500.0,0.00014879,2]
[337068336,1725411041190,-506.57496734,0.00014879,2]
[337068337,1725411041200,-500.0,0.00014879,2]
[337068338,1725411041209,-500.0,0.00014879,2]
[337068339,1725411041219,-500.0,0.00014879,2]
[337068340,1725411041229,-500.27362573,0.00014879,2]
[337068341,1725411041239,-500.0,0.00014879,2]
[337068342,1725411041260,-500.0,0.00014879,2]
[337068343,1725411041270,-500.0,0.00014879,2]
[337068344,1725411041280,-500.0,0.00014879,2]
[337068345,1725411041289,-500.0,0.00014879,2]
[337068346,1725411041298,-500.0,0.00014879,2]
[337068347,1725411041308,-500.0,0.00014879,2]
[337068348,1725411041318,-500.0,0.00014879,2]